Cogmind - Beta 11.1 @@@ ROGUE MODE // 2022.05.29 @ 11:11:53 Player: ChromeKnight Result: Destroyed by G-47 Trooper with Particle Gun Performance ------------- Evolutions (2) 1000 Regions Visited (5) 1000 Robots Destroyed (25) 125 Value Destroyed (374) 374 Prototype IDs (1) 20 Alien Tech Used (0) 0 Bonus (0) 0 TOTAL SCORE: 2519 Bonus ------- None Cogmind --------- Core Integrity 0/550 Matter 261/300 Energy 64/100 System Corruption 0% Temperature Cool (9) Movement Core (350) Ox6 Location -8/Materials Parts ------- > --- POWER (1) -------- (None) > --- PROPULSION (2) --- (None) > --- UTILITY (6) ------ Large Storage Unit > --- WEAPON (2) ------- (None) > --- INVENTORY (15) --- Aluminum Leg Aluminum Leg Aluminum Leg Aluminum Leg Aluminum Leg Carbon-fiber Leg Improved Cooling System Improved Cooling System Medium Storage Unit High-capacity Matter Pod (171) Experimental Sensor Array Matter Filter Gauss Rifle Gauss Rifle Peak State ------------ > --- POWER ------------ Light Angular Momentum Engine > --- PROPULSION ------- Improved Treads Improved Treads > --- UTILITY ---------- Large Storage Unit Seismic Detector Hardened Medium Armor Plating Hardened Medium Armor Plating > --- WEAPON ----------- High-powered Shotgun High-powered Shotgun > --- INVENTORY -------- Aluminum Leg Aluminum Leg Aluminum Leg Aluminum Leg Aluminum Leg Aluminum Leg Improved Cooling System Improved Cooling System Medium Storage Unit High-capacity Matter Pod Experimental Sensor Array Matter Filter Beamcaster Autogun Gauss Rifle [Rating: 27] Favorites ----------- Power Ion Engine Engine Ion Engine Propulsion Improved Treads Treads Improved Treads Utility Seismic Detector Device Seismic Detector Storage Large Storage Unit Protection Hardened Medium Armor Plating Weapon Autogun Energy Gun Beamcaster Ballistic Gun Autogun Build | -11 -10 -10 -10 -9 -8 ------- Run | Scr Mat Min Exi Min Mat Slots Evolved 4 | . . . . . 4 Power . | . . . . . . Propulsion . | . . . . . . Utility 4 | . . . . . 4 Weapon . | . . . . . . Parts Attached 28 | 7 7 . . 6 8 Power 3 | 1 . . . 1 1 Engine 3 | 1 . . . 1 1 Core . | . . . . . . Reactor . | . . . . . . Propulsion 6 | 2 2 . . 2 . Treads 6 | 2 2 . . 2 . Leg . | . . . . . . Wheel . | . . . . . . Hover . | . . . . . . Flight . | . . . . . . Utility 7 | 2 1 . . 2 2 Device 3 | 1 . . . 2 . Storage 2 | 1 1 . . . . Processor . | . . . . . . Hackware . | . . . . . . Protection 2 | . . . . . 2 Artifact . | . . . . . . Weapon 12 | 2 4 . . 1 5 Energy Gun 1 | . . . . . 1 Energy Cannon . | . . . . . . Ballistic Gun 11 | 2 4 . . 1 4 Ballistic Cannon . | . . . . . . Launcher . | . . . . . . Special Weapon . | . . . . . . Impact Weapon . | . . . . . . Slashing Weapon . | . . . . . . Piercing Weapon . | . . . . . . Special Melee Weapon . | . . . . . . Unidentified Prototypes 1 | . . . . 1 . Parts Lost 9 | . . . . . 9 Power 1 | . . . . . 1 Propulsion 2 | . . . . . 2 Utility 3 | . . . . . 3 Weapon 3 | . . . . . 3 Highest Loss Streak 9 | . . . . . 9 To Critical Strikes . | . . . . . . Average Slot Usage (%) 96 | . 100 100 100 100 65 Engine 13 | . 14 14 14 14 7 Treads 26 | . 28 28 28 28 16 Device 13 | . 14 14 14 14 8 Storage 13 | . 14 14 14 14 9 Ballistic Gun 26 | . 28 28 28 28 15 Naked Turns . | . . . . . . Heaviest Build 52 | 14 32 32 32 32 52 Greatest Support 46 | 40 46 46 46 46 46 Greatest Overweight (x) 8 | . . . . . 8 Average Overweight (x) . | . . . . . . Largest Inventory Capacity 15 | 8 15 15 15 15 15 Average Capacity 13 | 7 12 15 15 15 15 Most Carried 15 | 2 15 15 15 15 15 Average Carried 13 | 1 10 14 15 14 14 Final Capacity 15 | 8 15 15 15 15 15 Final Carried 15 | 2 14 15 15 15 14 Class Distribution -------------------- 95% | Mutant 4% | Scavenger-Mutant Dominant Class ---------------- Mutant | -10/Materials Mutant | -10/Mines Mutant | -10/Exiles Mutant | -9/Mines Mutant | -8/Materials Resources | -11 -10 -10 -10 -9 -8 ----------- Run | Scr Mat Min Exi Min Mat Matter Collected 997 | 289 111 295 . 158 144 Remotely . | . . . . . . Salvage Created 827 | 68 238 242 . 68 211 Parts 60 | 9 18 15 . 8 10 Haulers Intercepted . | . . . . . . Recyclers Shooed 3 | 1 1 . . . 1 Parts Field Recycled . | . . . . . . Retrieved Matter . | . . . . . . Parts Self-Destructed . | . . . . . . Prevented . | . . . . . . Kills | -11 -10 -10 -10 -9 -8 ------- Run | Scr Mat Min Exi Min Mat Combat Hostiles Destroyed 14 | . 4 5 . 3 2 Guns 14 | . 4 5 . 3 2 Classes Destroyed 7 | 1 4 . . . 2 Tunneler 5 | 3 . 1 . 1 . Recycler 5 | . 1 2 . . 2 Watcher 1 | . 1 . . . . Swarmer 10 | . 2 5 . 3 . Grunt 2 | . 2 . . . . Specialist 1 | . . . . . 1 Hunter 1 | . . . . . 1 Best Kill Streak 4 | 3 3 4 . 3 2 Combat Bots Only 3 | . 2 3 . 3 1 Max Kills in Single Turn 1 | 1 1 1 . 1 1 Gunslinging . | . . . . . . Exploded . | . . . . . . Melee . | . . . . . . Uniques/NPCs Destroyed . | . . . . . . Combat | -11 -10 -10 -10 -9 -8 -------- Run | Scr Mat Min Exi Min Mat Damage Taken 2111 | . 109 171 . 102 1729 Core 607 | . 10 13 . 31 553 Absorbed by Shields . | . . . . . . Core Remaining (%) 89 | 100 . . . 78 . Volleys Fired 73 | 11 16 15 . 8 23 Largest 2 | 2 2 2 . 2 2 Hottest 75 | 40 46 46 . 46 75 Shots Fired 135 | 22 32 30 . 16 35 Gun 135 | 22 32 30 . 16 35 Cannon . | . . . . . . Launcher . | . . . . . . Special . | . . . . . . Kinetic 129 | 22 32 30 . 16 29 Thermal 6 | . . . . . 6 Explosive . | . . . . . . Electromagnetic . | . . . . . . Robot Hit Streak 7 | 6 7 4 . 3 5 Robot Miss Streak 5 | 1 4 3 . 5 2 Penetration Max . | . . . . . . Secondary Targets 1 | . . . . 1 . Max Gunslinging Chain 1 | . . . . 1 . Shots Hit Robots 87 | 17 21 14 . 7 28 Core Hits 41 | 6 12 8 . 4 11 Critical Kills . | . . . . . . Critical Parts Destroyed . | . . . . . . Critical Strikes . | . . . . . . Melee Attacks . | . . . . . . Impact . | . . . . . . Slashing . | . . . . . . Piercing . | . . . . . . Sneak Attacks . | . . . . . . Combat Hostiles . | . . . . . . Follow-up Attacks . | . . . . . . Damage Inflicted 1358 | 183 251 254 . 110 560 Guns 1358 | 183 251 254 . 110 560 Cannons . | . . . . . . Explosions . | . . . . . . Melee . | . . . . . . Ramming . | . . . . . . Kinetic 1275 | 183 251 254 . 110 477 Thermal 83 | . . . . . 83 Explosive . | . . . . . . Electromagnetic . | . . . . . . Impact . | . . . . . . Slashing . | . . . . . . Piercing . | . . . . . . Highest Corruption . | . . . . . . Average Corruption . | . . . . . . Corruption Purged . | . . . . . . Corruption Blocked . | . . . . . . Overload Shots . | . . . . . . Overflow Damage . | . . . . . . Projectiles . | . . . . . . Explosions . | . . . . . . Melee . | . . . . . . Knockbacks . | . . . . . . Impact . | . . . . . . Kinetic . | . . . . . . Secondary . | . . . . . . Self-Inflicted Damage . | . . . . . . Shots . | . . . . . . Rammed . | . . . . . . Targets Rammed . | . . . . . . Kicked . | . . . . . . Crushed . | . . . . . . Highest Temperature 129 | . 9 12 . 12 129 Average Temperature 19 | . 5 5 . 6 40 Received Heat Transfer 219 | . 30 . . . 189 Siege Activations . | . . . . . . Robots Corrupted . | . . . . . . Combat Hostiles . | . . . . . . Parts Fried . | . . . . . . Impact Corruptions . | . . . . . . Robots Melted . | . . . . . . Combat Hostiles . | . . . . . . Parts Melted . | . . . . . . Heat Transferred 148 | . . . . . 148 Parts Sabotaged . | . . . . . . Parts Stolen . | . . . . . . Parts Stripped . | . . . . . . Power Chain Reactions . | . . . . . . Missiles Intercepted . | . . . . . . Alert | -11 -10 -10 -10 -9 -8 ------- Run | Scr Mat Min Exi Min Mat Peak Influence 113 | 15 97 113 . 75 86 Initial 33 | . 9 33 . . . Average 44 | 3 58 77 . 6 32 Maximum Alert Level . | . . . . . . Low Security (%) 100 | 100 100 100 . 100 100 Level 1 . | . . . . . . Level 2 . | . . . . . . Level 3 . | . . . . . . Level 4 . | . . . . . . Level 5 . | . . . . . . High Security . | . . . . . . Max Security . | . . . . . . Squads Dispatched 3 | . . . . 1 2 Investigation 1 | . . . . 1 . Extermination . | . . . . . . Reinforcement 2 | . . . . . 2 Assault . | . . . . . . Garrison . | . . . . . . Intercept . | . . . . . . Searches Triggered . | . . . . . . Construction Impeded . | . . . . . . Haulers Reinforced . | . . . . . . Active Scanning Responses . | . . . . . . Cargo Convoy Interrupts . | . . . . . . Stealth | -11 -10 -10 -10 -9 -8 --------- Run | Scr Mat Min Exi Min Mat Distress Signals . | . . . . . . Communications Jammed . | . . . . . . Distress Signals . | . . . . . . Times Spotted 30 | . 11 8 . 3 8 Peak Tracking Total 5 | . 3 3 . 3 5 Tactical Retreats 2 | . 1 1 . . . Traps | -11 -10 -10 -10 -9 -8 ------- Run | Scr Mat Min Exi Min Mat Traps Triggered 1 | . 1 . . . . Indirectly . | . . . . . . Trap Hack Attempts . | . . . . . . Triggered . | . . . . . . Disarmed . | . . . . . . Reprogrammed . | . . . . . . Reused . | . . . . . . Traps Extracted . | . . . . . . Installed . | . . . . . . Triggered . | . . . . . . Machines | -11 -10 -10 -10 -9 -8 ---------- Run | Scr Mat Min Exi Min Mat Machines Disabled . | . . . . . . Max in Single Turn . | . . . . . . Machines Sabotaged . | . . . . . . Garrisons Compromised . | . . . . . . Overloaded Fab Kills . | . . . . . . Hacking | -11 -10 -10 -10 -9 -8 --------- Run | Scr Mat Min Exi Min Mat Machines Accessed 3 | . 2 . . 1 . Terminals 2 | . 2 . . . . Fabricators . | . . . . . . Repair Stations . | . . . . . . Recycling Units . | . . . . . . Scanalyzers . | . . . . . . Garrison Access . | . . . . . . Total Hacks 5 | . 4 . . 1 . Successful 4 | . 3 . . 1 . Failed 1 | . 1 . . . . Catastrophic . | . . . . . . Database Lockouts . | . . . . . . Manual 4 | . 4 . . . . Terminals 4 | . 4 . . . . Fabricators . | . . . . . . Repair Stations . | . . . . . . Recycling Units . | . . . . . . Scanalyzers . | . . . . . . Garrison Access . | . . . . . . Terminal Hacks 1 | . . . . 1 . Open Door 1 | . . . . 1 . Fabricator Hacks . | . . . . . . Repair Station Hacks . | . . . . . . Recycling Unit Hacks . | . . . . . . Scanalyzer . | . . . . . . Garrison Access Hacks . | . . . . . . Unauthorized Hacks 3 | . 3 . . . . Terminals 3 | . 3 . . . . Botnet 2 | . 2 . . . . Operators 1 | . 1 . . . . Fabricators . | . . . . . . Repair Stations . | . . . . . . Recycling Units . | . . . . . . Scanalyzers . | . . . . . . Garrison Access . | . . . . . . Data Cores Recovered . | . . . . . . Used . | . . . . . . Hacking Detections . | . . . . . . Full Trace Events . | . . . . . . Feedback Events . | . . . . . . Feedback Blocked . | . . . . . . Robot Schematics Acquired . | . . . . . . Robots Built . | . . . . . . Authchips . | . . . . . . Time . | . . . . . . Total Robot Build Rating . | . . . . . . Part Schematics Acquired . | . . . . . . Parts Built . | . . . . . . Authchips . | . . . . . . Time . | . . . . . . Total Part Build Rating . | . . . . . . Parts Repaired . | . . . . . . Time . | . . . . . . Parts Recycled . | . . . . . . Recycled Matter . | . . . . . . Retrieved Matter . | . . . . . . Retrieved Components . | . . . . . . Parts Scanalyzed . | . . . . . . Part Schematics Acquired . | . . . . . . Parts Damaged . | . . . . . . Bothacking | -11 -10 -10 -10 -9 -8 ------------ Run | Scr Mat Min Exi Min Mat Used RIF Installer . | . . . . . . Robots Hacked . | . . . . . . Non-combat . | . . . . . . Combat . | . . . . . . Robot Hacks Applied . | . . . . . . Relay Couplers Released . | . . . . . . Fabnet Peak Effective % . | . . . . . . Robots Rewired . | . . . . . . Allies Hacked . | . . . . . . Hacks Repelled . | . . . . . . Allies | -11 -10 -10 -10 -9 -8 -------- Run | Scr Mat Min Exi Min Mat Total Allies 1 | . . 1 . . . Largest Group 1 | . . 1 1 . . Highest-Rated Group 31 | . . 31 31 . . Highest-Rated Ally 31 | . . 31 31 . . Total Orders . | . . . . . . Ally Attacks . | . . . . . . Total Damage . | . . . . . . Kills . | . . . . . . Allies Corrupted . | . . . . . . Allies Melted . | . . . . . . Intel | -11 -10 -10 -10 -9 -8 ------- Run | Scr Mat Min Exi Min Mat Robot Analysis Total . | . . . . . . Derelict Logs Recovered 3 | . . 1 . 2 . Drone Launches . | . . . . . . Drone Recoveries . | . . . . . . Exploration | -11 -10 -10 -10 -9 -8 ------------- Run | Scr Mat Min Exi Min Mat Turns Passed 2686 | 113 677 811 79 740 266 Spaces Moved 1465 | 48 373 481 50 415 98 Core 8 | 5 . . . . 3 Treads 1457 | 43 373 481 50 415 95 Legs . | . . . . . . Wheels . | . . . . . . Hover . | . . . . . . Flight . | . . . . . . Fastest Speed 50 | 50 160 160 160 160 160 Average Speed 161 | 148 160 160 160 160 187 Slowest Speed 450 | 160 160 160 160 160 450 Overloaded Moves . | . . . . . . Propulsion Burnouts . | . . . . . . Robots Hopped . | . . . . . . Cave-ins Triggered . | . . . . . . Exploration Rate (%) 41 | 4 73 76 10 73 13 Regions Visited 5 Branch Regions 3 Pre-discovered Areas . | . . . . . . Known Exits Taken . | . . . . . . Unknown Exits Taken 5 | 1 1 1 1 1 . Scrap Searched 2 | . . 1 . 1 . Spaces Dug . | . . . . . . Terrain Destroyed . | . . . . . . Melee . | . . . . . . Projectile . | . . . . . . AOE . | . . . . . . Terrain Rammed . | . . . . . . Walls Destroyed . | . . . . . . Machines Disabled . | . . . . . . Actions | -11 -10 -10 -10 -9 -8 --------- Run | Scr Mat Min Exi Min Mat Total 1677 | 67 430 499 49 483 149 Wait 59 | . 6 1 . 40 12 Move 1460 | 47 372 480 49 414 98 Hop . | . . . . . . Pick Up 29 | 2 17 2 . 6 2 Fast Attach 12 | 7 . . . 2 3 Attach 1 | . . . . . 1 Detach . | . . . . . . Swap 15 | . 7 . . 4 4 Drop 28 | . 12 1 . 9 6 Fire 73 | 11 16 15 . 8 23 Melee . | . . . . . . Ram . | . . . . . . Kick . | . . . . . . Crush . | . . . . . . Escape Stasis . | . . . . . . Rewire . | . . . . . . Trap . | . . . . . . Miscellaneous . | . . . . . . Route ------- -11/Scrapyard -10/Materials (discovered 5 exits: [*Mat x3] / [*Min x2]) -10/Mines (discovered 2 exits: [*Mat] / [*Exi]) -10/Exiles -9/Mines -8/Materials (discovered 2 exits: Fac / [*Sto]) History --------- Turn | Location | Event 5 | -11/Scrapyard | Discovered new exit (range 16) 114 | -11/Scrapyard | Entered Materials 259 | -10/Materials | Discovered new exit (range 10) 315 | -10/Materials | Build established: Mutant 384 | -10/Materials | Discovered new exit (range 16) 535 | -10/Materials | Discovered new exit (range 15) 647 | -10/Materials | Discovered new exit (range 4) 766 | -10/Materials | Discovered new exit (range 12) 791 | -10/Materials | Entered Mines 818 | -10/Mines | Met a Derelict bent on vengeance 878 | -10/Mines | Discovered new exit (range 8) 1038 | -10/Mines | Learned 2 Materials zone layouts 1371 | -10/Mines | Received a Mining Laser from a helpful Derelict 1594 | -10/Mines | Deemed a non-threat by the Exiles lab entrance 1596 | -10/Mines | Discovered new exit (range 5) 1602 | -10/Mines | Entered Exiles 1602 | -10/Exiles | Accompanied by 1 ally 1642 | -10/Exiles | Met 8R-AWN 1658 | -10/Exiles | Discovered new exit (range 15) 1681 | -10/Exiles | Entered Mines 1742 | -9/Mines | Found a damaged Exp. Sensor Array with a note attached 1745 | -9/Mines | Found Prototype Device 1745 | -9/Mines | Identified Exp. Sensor Array 1781 | -9/Mines | Learned Materials stockpile data 1794 | -9/Mines | Received a Rocket Launcher from a helpful Derelict 2199 | -9/Mines | Learned Materials stockpile data 2199 | -9/Mines | Discovered new exit (range 4) 2266 | -9/Mines | Met a Derelict shopkeep closing up shop 2421 | -9/Mines | Entered Materials 2421 | -8/Materials | Evolved 4 slots: Utility x4 2422 | -8/Materials | Identified exit to Factory 2626 | -8/Materials | Discovered new exit (range 4) 2680 | -8/Materials | Core integrity fell below 50% 2685 | -8/Materials | Core integrity fell below 20% 2687 | -8/Materials | Destroyed by G-47 Trooper with Particle Gun Last Messages --------------- 02650_ Hpw. Shotgun blasted off. 02651_ U-05 Engineer builds a Wall. 02653_ Penetrated by Slug. 02654_ Acquired Hpw. Shotgun. 02655_ Hpw. Shotgun destroyed. 02657_ U-05 Engineer builds a Wall. 02663_ Penetrated by Slug. 02666_ U-05 Engineer builds a Wall. 02670_ Hrd. Medium Armor Plating destroyed. 02672_ U-05 Engineer builds a Door. 02674_ Imp. Treads destroyed. 02676_ Acquired 30 matter. 02676_ Beamcaster destroyed. 02676_ Seismic Detector destroyed. 02680_ Acquired 14 matter. 02684_ Penetrated by Slug. 02684_ Fusion Modulator explodes. 02684_ Recycling Unit disabled. 02685_ Critical hit (Burn: +37). 02685_ U-05 Engineer lays Concrete. Map ----- +----------------------------------------------------+ | ?# """ # #""" ## + " + | | ?# + + + # """ ############ ### | | ?# # # ## # """ # #???????## ##?? | | ######### ######### # """ + #?########+#??? | | # # # "" # #?# #??? | | # """ + # """ # #?# #### | | # """ # + "" # #?# """ + | | # """ # # """ # #?#""""" #### | | # ##"" # " # #?#""""" # | | # """ ##"T # # #?#""""" # < | | # """ ##"" # # #?# """ # | | # """ + ####### ### + | | # ## ###### ## # | | # """ ### ### ########### | | # """ #?# #?# + # | | # """ #?# #?# g##### ### """"" # | | # #?#+####+##### ######+##### """"" # | | ########?# ## ## ] !# """"" # | | ?????????# ## # * # + | | ?????????# ??????##a%## ???????????? | | ?????????# ????# Yg # ?????????????? | | ?????????# ??# % # """ "?????????????? | | ?????????# #%*H=# """ T?????????????? | | ?????????# #! !|# """ "?????????????? | | ?????????# ## ###?? ?????????????? | | ?????????############@####################???? | | ???????????????# ! %a[# ???? | | ???????????????# *#=[* ???? | | ???????????????; u# [%% ???? | | ??????????????#; =+* !######??????????? | | ?????????????# ; =[#% #???????????????? | | ?????????????# ; ! %# #???????????????? | | ?????????????# ; [# ########????????? | | ?????????????# ; # # !#????????? | | ?????????????##;;;;;;;;;## # #????????? | | ??????????????# ## # """ #????????? | | ??????????????### ######## + """ #????????? | | ???################??????# # """ #????????? | | ???# !! ## ?????# # #????????? | | ???# ## """??# ########????????? | | ???# ## """""## # #????????? | | ???# ## """""## #[ """#????????? | | ???# ## """""## # """#????????? | | ???# ## """ ## + """#????????? | | ???# #?? ## # #????????? | | ???# ] #???? ??# # #????????? | | ??????#####+########+##### ########????????? | | ???????# #???????????????? | | ???????# #???????????????? | | ???????# #???????????????? | +----------------------------------------------------+ Best States ------------- Heat Dissipation 31 Energy Generation 18 Energy Capacity 250 Matter Stores 300 Matter Capacity 300 Sight Range 16 Terrain Scan Density 10 Armor Coverage 450 Evasion (%) 40 Recoil Reduction 2 Item Schematics ----------------- None Robot Schematics ------------------ None Fabricated ------------ Nothing Alien Tech Used ----------------- None Achievements -------------- None Challenges ------------ None Game ------ Seed GodMasterWheel Manual? 0 Play Time 00:14:19 Cumulative 292.3 hours Start 2022.05.29 @ 10:56:48 End 2022.05.29 @ 11:11:53 Sessions 1 Manual Loads 0 Difficulty Rogue Special Mode None Game No. 534 Rogue 379 Adventurer 148 Explorer 7 Win Type - Total 10 Types 8/0/1/1/0/0/0/0/0 Lore% 73 Gallery% 85 Achievement% 66 Wizard Run 0 Options --------- ASCII 0 Keyboard 0 Movement Numpad Keybinds 0 Fullscreen 1 Font 18/SmallcapsGlow Map View 76x50 Tactical HUD 1 Map Filters NONE Filters NONE Steam 1 RUN: 9f779b5d-0b4e-48be-932e-ef487b24095f